bitfinex/quotes_ETHUSD_20260202
["timestamp","ask_amount","ask_price","bid_price","bid_amount"]
[1770001733022,0.0011,2264.6,2263.5,0.001]
[1770001733314,2.06911377,2264.6,2263.5,0.001]
[1770001733496,0.92444203,2264.5,2263.5,0.001]
[1770001734492,1.10404522,2264.4,2263.5,0.001]
[1770001734898,0.9249494,2264.3,2263.3,0.001]
[1770001735200,0.926,2264.2,2263.3,0.001]
[1770001735402,0.9249494,2264.1,2263.3,0.001]
[1770001735584,0.926,2264.2,2263.3,0.001]
[1770001735787,0.92488599,2264.1,2263.3,0.001]
[1770001736011,0.926,2264.2,2263.3,0.001]
[1770001736210,0.92486178,2264.1,2263.3,0.001]
[1770001736514,1.10419151,2264.1,2263.3,0.001]
[1770001736824,0.644691,2264.0,2263.3,0.001]
[1770001736998,2.03014297,2264.2,2263.3,0.001]
[1770001737189,0.92486279,2264.1,2263.3,0.001]
[1770001737390,2.03014297,2264.2,2263.3,0.001]
[1770001737797,0.23424205,2264.0,2262.6,1.10490267]
[1770001738122,0.13184205,2263.6,2262.4,1.10499902]
[1770001738333,0.13184205,2263.4,2262.3,0.001]
[1770001738492,1.10467942,2263.1,2261.8,1.10531435]
[1770001738693,0.68113856,2263.0,2261.8,1.10531435]
[1770001739090,0.92474953,2262.9,2261.7,1.10535222]
[1770001739427,0.81298061,2263.0,2261.1,13.82902982]
[1770001739591,0.13184205,2262.8,2261.4,1.10546514]
[1770001739793,0.13184205,2262.8,2261.7,1.10535089]
[1770001739794,0.92422661,2262.7,2261.7,1.10535089]
[1770001740013,0.92415763,2262.6,2261.5,1.10544004]
[1770001740304,0.926,2262.5,2261.6,1.10537621]
[1770001740502,1.10502121,2262.4,2261.3,4.42218297]
[1770001740686,1.10502121,2262.4,2261.3,1.10555874]
[1770001741227,1.10502121,2262.4,2261.1,1.10562419]
[1770001741523,1.05616921,2262.3,2260.9,1.10572872]
[1770001741738,0.13184205,2262.1,2261.1,1.10562096]
[1770001741936,2.26116761,2262.4,2261.2,1.10559821]
[1770001742225,0.92411798,2262.3,2260.7,13.82902982]
[1770001742398,1.05478192,2262.2,2260.8,1.10577523]
[1770001742721,1.23705867,2262.0,2260.3,18.25304502]
[1770001742907,0.6580865,2261.9,2260.6,13.82902982]
[1770001744213,0.926,2262.3,2261.0,13.82902982]
[1770001744849,2.03110152,2262.3,2261.1,1.10565653]
[1770001745012,2.16294357,2262.3,2261.0,1.10569638]
[1770001745728,2.16294357,2262.3,2261.1,1.10565653]
[1770001745928,0.65830683,2262.2,2261.1,1.10565653]
[1770001746840,1.10516776,2262.1,2261.0,1.10570544]
[1770001747410,0.65830683,2262.2,2261.0,14.93473526]
[1770001747639,1.10513881,2262.2,2261.0,14.93473526]
[1770001747841,1.10513881,2262.2,2261.1,14.5]
[1770001748043,1.10513881,2262.2,2261.0,1.10570544]
[1770001748652,1.10513881,2262.2,2261.0,14.63928421]
[1770001748825,0.926,2262.3,2261.0,14.63928421]
[1770001749138,2.03108331,2262.3,2261.2,13.53357877]
[1770001750235,0.926,2262.3,2261.2,13.53357877]
[1770001750743,2.03107619,2262.3,2261.1,1.9194088]
[1770001750912,0.64513564,2262.2,2261.2,1.10560764]
[1770001751620,0.64513564,2262.2,2261.1,3.02502968]
[1770001751943,0.64513564,2262.2,2261.1,1.10562088]
[1770001752940,0.64513564,2262.2,2260.9,4.42262615]
[1770001752941,1.10516776,2262.1,2260.8,1.10680325]
[1770001754523,1.10516776,2262.1,2260.8,14.64038202]
[1770001754743,1.57213564,2262.2,2260.8,14.64038202]
[1770001755353,1.57213564,2262.2,2261.0,13.53357877]
[1770001755533,0.927,2262.2,2261.1,16.33693665]
[1770001755733,2.03211987,2262.2,2261.1,16.33693665]
[1770001755940,2.03211987,2262.2,2261.1,13.53357877]
[1770001756447,0.927,2262.2,2261.1,13.53357877]
[1770001757053,2.03211902,2262.2,2261.2,1.10560764]
[1770001757439,0.0011,2262.1,2261.2,1.10560764]
[1770001758150,0.0011,2262.1,2261.1,1.1056244]
[1770001758347,0.13184205,2262.0,2261.0,0.001]
[1770001758557,0.13184205,2262.0,2261.0,1.10670495]
[1770001759151,1.10526548,2261.9,2261.0,0.001]
[1770001760959,1.10526548,2261.9,2260.8,0.001]
[1770001761160,1.10526548,2261.9,2260.5,0.001]
[1770001761161,1.10555874,2261.3,2260.5,0.001]
[1770001761333,1.49296358,2261.2,2260.5,0.001]
[1770001762769,1.62480563,2261.2,2259.9,1.10724013]
[1770001762960,1.62480563,2261.2,2260.1,1.10613922]
[1770001763167,1.10565653,2261.1,2259.9,0.001]
[1770001764052,1.10565653,2261.1,2259.9,13.53457877]
[1770001764257,0.927,2261.0,2260.0,1.46418714]
[1770001764560,0.927,2261.0,2259.9,13.53457877]
[1770001764936,1.10549967,2261.5,2259.9,13.53457877]
[1770001765136,2.032439,2261.6,2260.3,14.63962663]
[1770001766341,0.927,2261.6,2260.3,14.63962663]
[1770001766870,0.927,2261.6,2260.6,13.53357877]
[1770001767038,2.0324233,2261.6,2260.8,1.10580325]
[1770001767244,2.0324233,2261.6,2260.7,1.36654208]
[1770001767245,2.0324233,2261.6,2260.7,1.10581418]
[1770001767442,2.0324233,2261.6,2260.2,13.53357877]
[1770001767641,0.92584348,2261.5,2260.2,13.53357877]
[1770001767848,2.18274407,2261.4,2260.2,14.63964515]
[1770001768156,1.29666714,2261.3,2260.2,13.53357877]
[1770001768358,0.92584348,2261.2,2260.7,1.10584292]
[1770001768575,0.37082366,2261.3,2260.6,1.10586831]
[1770001768771,1.15450059,2261.5,2260.6,1.10586831]
[1770001769068,1.10550986,2261.4,2260.3,1.10604786]
[1770001769287,0.92630295,2261.3,2260.3,1.10604786]
[1770001769572,1.10550986,2261.4,2260.3,1.10604786]
[1770001769777,0.92574625,2261.3,2260.3,14.63962663]
[1770001770070,1.10550986,2261.4,2260.4,15.43997617]
[1770001770279,0.92569806,2261.3,2260.4,13.53357877]
[1770001770439,1.10550986,2261.4,2260.2,1.10606984]
[1770001770440,0.92569806,2261.2,2260.2,1.10606984]
[1770001770646,1.15450059,2261.2,2260.2,1.10608358]
[1770001770840,1.15450059,2261.2,2260.5,0.001]
[1770001771053,0.0011,2261.1,2260.5,0.001]
[1770001771981,0.55412608,2261.1,2260.5,0.001]
[1770001772443,0.0011,2261.1,2260.5,0.001]
[1770001775007,0.0011,2262.1,2260.9,13.53357877]
[1770001775277,0.92518626,2262.0,2261.0,1.10570544]
[1770001775473,0.0011,2262.1,2261.0,15.19213693]
[1770001777182,0.0011,2262.3,2261.4,13.53357877]
[1770001777389,2.03187831,2262.7,2261.4,13.53357877]
[1770001777599,0.92484488,2262.6,2261.4,13.53357877]
[1770001777884,0.13184205,2262.5,2261.3,1.10555874]
[1770001778178,0.92484488,2262.4,2261.3,1.10555874]
[1770001778380,0.92484488,2262.3,2261.3,1.10555874]
[1770001778586,0.43749079,2262.5,2261.3,1.10555874]
[1770001778784,0.9246586,2262.4,2261.3,1.10555874]
[1770001779089,0.9246586,2262.3,2261.3,1.10555874]
[1770001779246,2.03190666,2262.7,2261.5,1.10546097]
[1770001779450,0.9247635,2262.6,2261.5,14.99805774]
[1770001779689,2.03189981,2262.7,2261.5,14.99805774]
[1770001779859,0.92469872,2262.6,2261.6,15.88986487]
[1770001780056,2.03187645,2262.7,2261.6,15.88986487]
[1770001780266,0.927,2262.7,2261.6,15.88986487]
[1770001781301,0.927,2262.7,2261.7,14.99795999]
[1770001781507,4.55024016,2263.3,2261.7,14.99795999]
[1770001781508,1.15450059,2263.3,2261.7,14.99795999]
[1770001781668,1.23644089,2263.3,2261.9,13.89259677]
[1770001781867,1.10456262,2263.4,2261.9,13.89259677]
[1770001782101,0.927,2263.6,2262.1,13.89259677]
[1770001782365,0.927,2263.6,2261.9,0.927]
[1770001782366,2.03145963,2263.6,2262.3,13.89259677]
[1770001782691,2.03145963,2263.6,2262.4,0.55285272]
[1770001783063,2.03145963,2263.6,2262.4,15.05285272]
[1770001783303,2.03145963,2263.6,2262.5,1.10497237]
[1770001784000,2.03144589,2263.6,2262.5,1.10497237]
[1770001784300,0.927,2263.6,2262.5,14.99756914]
[1770001784487,0.927,2263.6,2262.6,0.55277937]
[1770001785103,1.10424028,2264.0,2262.6,14.44537614]
[1770001785309,4.41689229,2264.1,2262.7,1.1048747]
[1770001785595,4.41689229,2264.1,2262.7,14.99747147]
[1770001786367,0.0011,2263.7,2262.7,1.1048747]
[1770001787503,0.0011,2263.7,2262.5,1.10497237]
[1770001787705,0.56656312,2263.7,2262.6,0.60779045]
[1770001788912,0.13184205,2263.5,2262.4,0.55285272]
[1770001789112,0.13184205,2263.5,2262.0,1.10518061]
[1770001789113,0.13184205,2263.3,2262.0,1.10518061]
[1770001789336,0.13184205,2263.3,2261.8,1.98123673]
[1770001789477,1.10463061,2263.2,2261.9,2.59538744]
[1770001789680,5.34552244,2263.4,2262.0,12.91998291]
[1770001789681,2.03155497,2263.4,2262.0,12.91998291]
[1770001790907,0.13184205,2263.3,2262.0,12.91998291]
[1770001791479,1.10463061,2263.2,2262.1,1.10516776]
[1770001792617,1.10463061,2263.2,2262.1,14.02515067]
[1770001792937,1.10463061,2263.2,2262.2,1.84458217]
[1770001793361,4.41852244,2263.3,2262.3,1.10507006]
[1770001793510,0.23424205,2263.2,2262.2,1.10509056]
[1770001793831,4.41852244,2263.3,2262.2,1.10509056]
[1770001795327,1.1045818,2263.4,2262.2,14.02507347]
[1770001795503,0.64497138,2263.3,2262.3,14.76455654]
[1770001795710,0.927,2263.5,2262.4,0.13184205]
[1770001795907,2.03149289,2263.5,2262.4,12.91998291]
[1770001796308,2.03149289,2263.5,2262.2,1.10509056]
[1770001797125,0.13184205,2263.4,2262.0,12.91998291]
[1770001797335,1.1045818,2263.3,2261.5,12.91998291]
[1770001797517,2.42952605,2263.2,2261.6,18.63360549]
[1770001798153,2.5613681,2263.2,2262.3,0.001]
[1770001799334,2.42952605,2263.2,2262.3,0.001]
[1770001799535,1.10467942,2263.1,2262.3,0.001]
[1770001800032,1.10466653,2263.2,2262.3,0.001]
[1770001800226,1.10571388,2263.3,2262.3,12.92098291]
[1770001801642,0.0011,2263.5,2262.7,12.91998291]
[1770001801839,1.10558617,2263.5,2262.8,1.3051825]
[1770001802042,1.10558617,2263.5,2262.5,27.41998291]
[1770001802245,1.10558744,2263.5,2262.5,27.41998291]
[1770001802542,1.10558744,2263.5,2262.4,1.10502121]
[1770001803634,0.0011,2263.5,2262.3,0.001]
[1770001803834,0.0011,2263.5,2262.4,12.91998291]
[1770001804027,0.0011,2263.5,2262.6,12.91998291]
[1770001804350,0.0011,2263.5,2262.8,12.91998291]
[1770001804554,0.0011,2263.7,2263.1,12.91998291]
[1770001804850,2.03019259,2264.1,2263.1,12.91998291]
[1770001805013,2.03019259,2264.1,2263.2,1.29199829]
[1770001805343,0.926,2264.1,2263.2,1.29199829]
[1770001805641,0.926,2264.1,2263.3,1.1045818]
[1770001805943,2.03020091,2264.1,2263.3,1.1045818]
[1770001806148,0.926,2264.1,2263.3,1.1045818]
[1770001806452,0.926,2264.1,2263.2,18.63030842]
[1770001806453,2.03019242,2264.1,2263.2,1.29199829]
[1770001806616,0.1024,2263.9,2262.3,3.04325292]
[1770001806968,1.15450059,2263.6,2262.3,1.10605979]
[1770001807125,1.15450059,2263.5,2262.3,0.001]
[1770001807327,0.92445573,2263.4,2262.5,1.10494576]
[1770001807539,2.95507567,2263.3,2262.3,0.001]
[1770001807745,2.76794486,2263.3,2262.3,0.001]
[1770001808254,0.92449443,2263.2,2262.3,0.001]
[1770001808437,2.76794486,2263.3,2262.3,0.001]
[1770001808620,0.92509194,2263.2,2262.3,0.001]
[1770001808824,0.92509194,2263.1,2262.3,0.001]
[1770001809021,2.76794486,2263.3,2262.3,0.001]
[1770001809223,1.75921129,2263.2,2262.3,0.001]
[1770001809423,0.92514939,2263.1,2262.3,0.001]
[1770001809756,1.10472823,2263.0,2262.3,0.001]
[1770001810125,0.92550967,2262.9,2262.3,0.001]
[1770001810326,0.92550967,2262.8,2262.3,0.001]
[1770001810554,1.10472823,2263.0,2262.3,0.001]
[1770001810758,1.59332587,2262.9,2262.3,0.001]
[1770001811053,0.92552106,2262.8,2262.3,0.001]
[1770001811257,0.66780481,2262.9,2262.3,0.001]
[1770001811458,2.74750929,2262.9,2262.0,0.001]
[1770001811766,1.1048747,2262.7,2262.0,0.001]
[1770001811927,1.57016163,2262.6,2262.0,0.001]
[1770001812125,0.64495774,2262.6,2262.0,0.001]
[1770001812329,0.926,2262.6,2262.0,0.001]
[1770001812831,1.93870733,2263.2,2262.0,13.46367783]
[1770001813259,0.92473546,2263.1,2262.0,13.46367783]
[1770001813560,1.93870733,2263.2,2262.5,0.001]
[1770001813757,1.10472823,2263.0,2262.5,0.001]
[1770001814634,1.74047925,2263.0,2262.3,0.001]
[1770001814841,0.92416517,2262.9,2262.3,0.001]
[1770001815050,1.74047925,2263.0,2262.3,0.001]
[1770001815235,0.92410453,2262.9,2262.3,0.001]
[1770001815452,0.26645838,2262.8,2262.3,0.001]
[1770001815769,1.84956032,2262.7,2261.7,1.1053309]
[1770001815961,2.02848385,2262.6,2261.6,14.5680544]
[1770001816161,1.10492353,2262.6,2261.6,14.5680544]
[1770001816867,0.92259841,2262.5,2261.5,1.1054251]
[1770001817163,1.10492353,2262.6,2261.6,1.10539078]
[1770001817467,0.92199566,2262.5,2261.6,1.10539078]
[1770001817765,1.10492353,2262.6,2261.5,1.1054233]
[1770001817766,0.92197139,2262.4,2261.5,1.1054233]
[1770001817970,4.41977177,2262.6,2261.3,14.56823657]
[1770001818176,0.9219197,2262.5,2261.3,14.56823657]
[1770001818402,0.53416915,2262.4,2261.4,1.89916612]
[1770001819164,0.53416915,2262.4,2261.3,14.56823657]
[1770001820279,1.10507006,2262.3,2261.3,14.56823657]
[1770001820685,1.02254217,2262.2,2261.2,0.001]
[1770001820962,0.13184205,2261.9,2261.2,0.001]
[1770001821174,1.84714217,2261.8,2261.2,0.001]
[1770001821375,0.92014217,2261.7,2261.2,0.001]
[1770001821684,0.91903794,2261.6,2261.2,0.001]
[1770001821880,0.927,2261.8,2261.2,0.001]
[1770001822088,1.27217838,2261.7,2260.5,0.001]
[1770001822285,1.10541209,2261.6,2260.5,0.001]
[1770001822487,1.10541209,2261.6,2260.5,13.46367783]
[1770001823680,1.10541209,2261.6,2260.5,0.001]
[1770001824076,0.22147614,2261.7,2260.7,13.46267783]
[1770001824280,0.927,2261.8,2260.9,14.56843217]
[1770001824583,0.927,2262.3,2261.1,13.46267783]
[1770001825088,0.927,2262.3,2261.1,27.96267783]
[1770001825280,0.91730061,2262.2,2260.8,2.46522482]
[1770001825482,0.91730061,2262.2,2260.5,0.001]
[1770001825483,0.13184205,2261.9,2260.5,0.001]
[1770001825700,0.13184205,2261.9,2260.7,1.10585051]
[1770001826284,0.13184205,2261.9,2260.5,0.001]
[1770001826285,1.10531435,2261.8,2260.5,0.001]
[1770001826696,1.10531435,2261.8,2260.7,0.001]
[1770001826895,0.0011,2261.5,2260.7,0.001]
[1770001827087,0.0011,2261.5,2260.7,13.46367783]
[1770001827290,0.0011,2261.7,2260.7,14.81014561]
[1770001828378,0.0011,2261.7,2260.8,14.56848108]
[1770001830815,0.0011,2261.7,2260.0,0.001]
[1770001830816,0.13184205,2260.6,2260.0,0.001]
[1770001830976,0.927,2260.5,2259.8,0.001]
[1770001831180,0.927,2260.5,2259.9,1.10620168]
[1770001831484,0.927,2260.5,2259.8,1.10728252]
[1770001831683,0.927,2260.5,2260.0,1.10618617]
[1770001832098,0.927,2260.5,2259.9,1.10623355]
[1770001832504,0.927,2260.5,2259.8,0.001]
[1770001832808,1.10571065,2261.0,2259.8,13.46367783]
[1770001833009,0.75951661,2261.0,2259.9,1.34636778]
[1770001833310,1.86522676,2261.0,2259.9,1.34636778]
[1770001834525,1.86522676,2261.0,2259.8,0.001]
[1770001835309,1.86522676,2261.0,2259.8,1.10728063]
[1770001836214,1.86522676,2261.0,2259.8,14.56995846]
[1770001836387,1.10571015,2261.0,2259.8,14.56995846]
[1770001836715,1.10571015,2261.0,2259.8,0.001]
[1770001839206,1.10571015,2261.0,2260.0,0.001]
[1770001840087,13.26574448,2260.9,2260.0,0.001]
[1770001840309,13.39758653,2260.7,2259.6,0.001]
[1770001840623,2.34479981,2260.6,2259.6,0.001]
[1770001840822,1.43114178,2260.6,2259.6,0.001]
[1770001841025,1.10595001,2260.5,2259.6,0.001]
[1770001841323,0.927,2260.4,2259.6,0.001]
[1770001841528,0.927,2260.4,2259.3,0.001]
[1770001841695,0.13184205,2260.3,2258.8,0.001]
[1770001842036,1.54599786,2260.3,2258.9,1.10671458]
[1770001842795,13.29518653,2259.6,2257.7,13.28047546]
[1770001842990,0.13184205,2259.2,2257.7,14.38776217]
[1770001843196,23.36967064,2259.2,2257.0,13.28047546]
[1770001843399,0.13184205,2258.6,2257.1,1.34123175]
[1770001843634,0.1024,2258.9,2257.7,1.10731939]
[1770001843635,0.927,2258.5,2257.7,1.10731939]
[1770001843936,0.927,2258.5,2257.1,1.34123175]
[1770001844121,0.13184205,2258.1,2256.7,13.28047546]
[1770001844432,0.13184205,2258.1,2256.7,14.38827711]
[1770001844618,0.13184205,2257.9,2256.7,13.28047546]
[1770001844931,0.13184205,2257.9,2256.6,4.43144007]
[1770001844932,0.927,2257.8,2256.6,4.43144007]
[1770001845236,2.03428024,2257.8,2256.7,13.83440561]
[1770001845828,2.03428024,2257.8,2256.7,0.55393015]
[1770001846232,2.03428024,2257.8,2256.6,1.10786138]
[1770001846399,2.03428024,2257.8,2256.4,4.43177085]
[1770001846602,0.13184205,2257.7,2256.4,1.10795119]
[1770001846804,0.13184205,2257.1,2256.1,1.10807568]
[1770001847142,0.13184205,2256.7,2255.5,1.10840168]
[1770001847341,0.13184205,2256.5,2255.5,1.10840168]
[1770001847512,0.13184205,2256.7,2255.5,1.10840168]
[1770001847700,0.928,2256.6,2255.5,2.10596319]
[1770001848331,1.10769361,2257.0,2255.5,15.33178307]
[1770001848652,4.43054601,2257.1,2255.5,15.33178307]
[1770001848653,0.928,2256.9,2255.5,15.33178307]
[1770001849144,0.928,2256.9,2255.5,15.46362512]
[1770001849328,2.03571755,2256.9,2255.5,15.33178307]
[1770001849502,0.928,2256.9,2255.6,15.20235886]
[1770001850122,0.928,2256.9,2255.7,13.35766193]
[1770001850328,0.928,2256.9,2255.7,13.22581988]
[1770001850543,0.13184205,2257.7,2255.7,13.35766193]
[1770001850721,0.13184205,2257.8,2256.1,13.22581988]
[1770001850915,1.10741971,2257.5,2256.3,1.10800868]
[1770001851127,1.23924047,2257.6,2256.3,1.10800868]
[1770001852003,0.13184205,2257.4,2256.3,1.10800868]
[1770001852206,0.13184205,2257.4,2255.8,4.43283175]
[1770001852509,0.13184205,2257.2,2256.1,1.1080855]
[1770001852722,0.928,2257.1,2256.1,1.1080855]
[1770001853105,1.10766504,2257.0,2255.7,4.43418469]
[1770001853334,0.64662598,2256.9,2255.8,2.0744847]
[1770001854110,1.16224205,2256.8,2255.7,0.001]
[1770001854347,1.16224205,2256.8,2254.7,4.43504558]
[1770001854348,0.13184205,2255.8,2254.7,4.43504558]
[1770001854618,0.928,2255.7,2254.6,1.10884414]
[1770001855014,1.24022524,2255.6,2254.5,0.001]
[1770001855240,0.13184205,2255.6,2254.5,0.001]
[1770001855442,0.80516326,2255.6,2254.5,0.001]
[1770001855847,0.13184205,2255.4,2254.5,0.001]
[1770001856657,0.13184205,2255.2,2254.5,0.001]
[1770001856956,0.13184205,2255.2,2254.1,1.1090901]
[1770001857155,0.13184205,2255.4,2253.9,13.22581988]
[1770001857373,0.67332121,2255.6,2254.0,14.99203791]
[1770001857522,0.929,2255.9,2254.2,13.22581988]
[1770001858561,0.929,2255.9,2254.4,13.22581988]
[1770001858861,0.13184205,2255.8,2254.4,13.22581988]
[1770001859064,1.10840168,2255.5,2254.1,1.1090901]
[1770001859352,1.24013024,2255.8,2254.1,14.33490998]
[1770001859525,1.24013024,2255.8,2254.2,15.27956872]
[1770001859720,0.13184205,2255.8,2254.2,15.27956872]
[1770001860065,0.1024,2255.6,2254.2,15.27956872]
[1770001860277,0.1024,2255.6,2254.0,1.10912976]
[1770001860278,0.13184205,2255.2,2254.0,1.10912976]
[1770001860729,0.13184205,2255.2,2253.4,4.43770507]
[1770001860730,12.84725485,2254.6,2253.2,0.1112816]
[1770001860918,0.13184205,2253.9,2252.8,1.10972469]
[1770001861116,0.13184205,2253.9,2251.9,2.22644823]
[1770001861117,0.23,2253.3,2252.0,1.11012433]
[1770001861350,1.06084205,2253.2,2252.0,1.11012433]
[1770001861565,0.13184205,2252.8,2251.0,0.0986602]
[1770001861721,0.23424205,2252.4,2251.0,0.0986602]
[1770001861920,9.3520708,2252.9,2251.0,0.0986602]
[1770001861921,0.13184205,2252.9,2252.0,1.11012433]
[1770001862155,1.47135495,2253.3,2252.0,1.11012433]
[1770001862156,0.23,2253.3,2252.0,14.33594421]
[1770001862450,0.13184205,2253.1,2252.0,1.11012433]
[1770001862752,0.13184205,2252.9,2251.5,13.22581988]
[1770001862959,0.13184205,2252.7,2251.1,13.22581988]
[1770001863122,0.13184205,2252.7,2251.2,17.66786747]
[1770001863123,0.929,2252.6,2251.2,17.66786747]
[1770001863450,0.929,2252.6,2251.3,1.87783863]
[1770001863758,0.42292045,2253.4,2251.8,13.22581988]
[1770001863759,0.23,2253.3,2251.8,13.22581988]
[1770001863920,0.36184205,2253.3,2251.8,13.22581988]
[1770001864121,0.23,2253.3,2251.8,13.22581988]
[1770001864759,0.23,2253.3,2252.0,13.22581988]
[1770001864928,0.23,2253.3,2252.2,13.22581988]
[1770001865251,0.23,2253.3,2252.3,1.10997646]
[1770001865767,0.36184205,2253.3,2252.2,1.10999187]
[1770001865969,0.13184205,2253.1,2251.3,15.10365851]
[1770001866259,0.13184205,2253.1,2251.5,17.66726932]
[1770001866427,0.73597701,2253.1,2252.1,1.11004263]
[1770001866628,0.73597701,2253.1,2252.2,1.11001904]
[1770001866963,0.13184205,2253.1,2251.6,1.76672693]
[1770001867125,1.24153063,2252.9,2251.7,1.11027223]
[1770001867324,1.24153063,2252.9,2251.6,1.11031082]
[1770001867325,0.13184205,2252.5,2251.6,1.11031082]
[1770001867526,0.13184205,2252.3,2251.0,0.0986602]
[1770001867723,0.13184205,2252.3,2251.0,4.54110291]
[1770001867925,0.13184205,2252.5,2251.6,1.11031986]
[1770001868225,0.93,2252.8,2251.6,1.11031986]
[1770001868435,0.13184205,2252.7,2251.6,1.11031986]
[1770001868745,0.93,2252.8,2251.6,1.11031986]
[1770001868938,0.13184205,2252.7,2251.6,1.11031986]
[1770001869139,0.13184205,2252.7,2251.2,4.44197401]
[1770001869140,0.1024,2252.6,2250.4,13.01892687]
[1770001869345,1.2416243,2252.7,2249.9,4.4445846]
[1770001869346,0.13184205,2251.1,2249.9,4.4445846]
[1770001869641,0.13184205,2250.6,2249.8,3.38008905]
[1770001869837,0.13184205,2250.5,2249.8,2.33816967]
[1770001870064,0.13184205,2251.0,2249.8,15.30709654]
[1770001870232,0.13184205,2250.9,2249.8,15.30709654]
[1770001870664,0.13184205,2251.2,2249.8,15.30709654]
[1770001870879,0.13184205,2251.0,2249.9,0.2335703]
[1770001871198,0.13184205,2251.0,2249.5,4.44483954]
[1770001871199,1.11076553,2250.7,2249.5,0.13184205]
[1770001871478,1.11076553,2250.7,2249.2,0.13184205]
[1770001871479,0.74,2250.9,2249.3,13.01892687]
[1770001871632,0.74,2250.9,2249.4,13.01892687]
[1770001871829,0.74,2250.9,2248.8,14.13061009]
[1770001871830,1.85070201,2250.9,2248.8,14.13061009]
[1770001872029,0.1024,2250.8,2248.8,14.13061009]
[1770001872453,4.57450942,2251.2,2248.8,14.13061009]
[1770001872454,0.93,2250.7,2249.1,0.13184205]
[1770001872642,0.93,2250.7,2249.2,0.13184205]
[1770001872840,0.93,2250.7,2249.0,13.15076892]
[1770001873040,13.81031512,2251.4,2248.8,1.24352527]
[1770001873041,0.93,2250.6,2248.8,1.11168322]
[1770001873253,2.04082516,2250.6,2248.9,13.15076892]
[1770001873455,0.93,2250.7,2249.2,0.13184205]
[1770001873773,0.93,2250.9,2249.1,0.13184205]
[1770001874131,0.23424205,2250.8,2249.0,13.01892687]
[1770001874335,0.13184205,2250.2,2248.7,4.44681607]
[1770001874532,0.13184205,2250.0,2248.8,0.56698511]
[1770001874832,0.13184205,2250.2,2248.8,0.56698511]
[1770001875057,0.13184205,2249.9,2248.8,0.56698511]
[1770001875255,0.13184205,2250.1,2248.6,1.22305001]
[1770001875256,1.11120988,2249.8,2248.6,0.1112816]
[1770001875465,0.931,2249.9,2248.8,1.11169145]
[1770001875762,0.13184205,2249.8,2248.6,0.1112816]
[1770001875965,0.13184205,2250.2,2248.6,4.55848348]
[1770001876170,0.13184205,2249.8,2248.6,0.1112816]
[1770001876371,0.13184205,2249.8,2247.4,2.29141977]
[1770001876372,0.13184205,2248.0,2247.2,3.31696248]
[1770001876668,0.13184205,2248.6,2247.4,13.01892687]
[1770001876867,0.13184205,2249.4,2247.2,1.11249072]
[1770001876868,0.13184205,2249.1,2247.6,13.01892687]
[1770001877074,0.13184205,2249.2,2247.6,13.01892687]
[1770001877268,0.13184205,2249.1,2247.8,13.01892687]
[1770001877468,0.13184205,2249.1,2248.8,0.001]
[1770001877669,0.13184205,2249.0,2248.8,0.001]
[1770001878045,0.13184205,2249.3,2248.8,0.001]
[1770001878372,0.13184205,2249.8,2248.8,0.001]
[1770001878581,0.13184205,2250.0,2248.8,0.001]
[1770001878761,0.858,2250.1,2248.8,13.01992687]
[1770001878964,0.858,2250.1,2249.0,13.01892687]
[1770001879174,0.858,2250.1,2248.9,1.11162225]
[1770001879355,0.13184205,2250.0,2249.0,1.11155573]
[1770001879548,0.13184205,2250.0,2248.9,1.11162123]
[1770001879748,0.13184205,2249.8,2249.0,1.11157177]
[1770001880046,0.13184205,2249.4,2248.8,0.001]
[1770001880249,0.13184205,2249.4,2249.0,1.1116027]
[1770001880546,0.858,2250.1,2249.0,1.66752356]
[1770001880853,4.57349956,2251.5,2249.0,1.66752356]
[1770001880854,0.931,2250.9,2249.1,13.01892687]
[1770001881054,0.931,2250.9,2249.2,13.01892687]
[1770001881287,0.13184205,2250.8,2249.3,1.11145689]
[1770001881487,0.13184205,2250.6,2249.3,1.11145689]
[1770001881784,0.13184205,2250.6,2249.4,1.60529042]
[1770001881987,1.24231452,2251.3,2249.4,1.60529042]
[1770001882286,0.13184205,2250.5,2249.4,1.60529042]
[1770001882453,0.13184205,2251.3,2249.5,13.25249717]
[1770001882653,0.13184205,2251.1,2249.5,13.25249717]
[1770001882872,0.13184205,2250.5,2249.6,0.55592086]
[1770001883045,0.13184205,2250.5,2249.3,1.11145689]
[1770001883248,0.13184205,2249.9,2249.2,4.44582759]
[1770001883480,0.13184205,2249.9,2249.1,1.11150631]
[1770001883481,0.13184205,2249.6,2249.1,1.11152719]
[1770001883664,0.13184205,2249.8,2249.1,1.11152719]
[1770001883866,0.13184205,2249.8,2249.1,2.11194402]
[1770001884073,0.13184205,2249.6,2249.1,2.11194402]
[1770001884479,0.13184205,2249.8,2249.1,1.11152719]
[1770001884850,0.13184205,2249.4,2248.8,0.001]
[1770001885047,0.13184205,2249.0,2248.1,4.44803204]
[1770001885253,0.13184205,2249.0,2247.0,4.45035702]
[1770001885547,0.13184205,2248.3,2247.8,1.11215655]
[1770001885774,0.13184205,2248.3,2248.1,1.11203075]
[1770001885979,0.13184205,2248.3,2247.2,4.44987157]
[1770001885980,0.13184205,2248.2,2247.3,1.11244604]
[1770001886189,0.13184205,2248.0,2247.3,1.11244604]
[1770001886592,0.13184205,2248.0,2247.3,2.15816985]
[1770001886799,0.13184205,2247.8,2247.2,1.11247796]
[1770001887001,0.13184205,2247.6,2246.3,0.931]
[1770001887303,0.13184205,2247.6,2246.3,4.4517118]
[1770001887304,0.13184205,2247.1,2246.3,4.4517118]
[1770001887470,0.13184205,2247.3,2245.5,2.28458097]
[1770001887471,0.13184205,2246.4,2245.5,2.28458097]
[1770001887657,0.13184205,2246.4,2244.0,1.27355759]
[1770001887658,0.03498193,2246.3,2245.7,1.1132319]
[1770001888006,18.65666834,2247.3,2245.7,1.1132319]
[1770001888007,0.13184205,2247.3,2245.7,14.13191769]
[1770001888207,0.13184205,2246.8,2245.7,14.13191769]
[1770001888496,0.13184205,2246.0,2245.7,1.11299082]
[1770001888654,0.13184205,2247.0,2245.7,1.11299082]
[1770001888858,0.13184205,2246.3,2245.8,1.11299082]
[1770001889286,0.13184205,2246.3,2245.8,2.22615061]
[1770001889489,0.13184205,2246.2,2244.6,0.932]
[1770001889686,0.13184205,2246.3,2245.7,1.11320638]
[1770001889892,0.13184205,2246.1,2244.8,4.45470681]
[1770001890074,0.13184205,2246.9,2244.8,4.45470681]
[1770001890075,0.13184205,2245.8,2245.6,1.11325214]
[1770001890274,0.13184205,2246.0,2245.6,1.11325214]